[Event "Titled Tuesday Blitz January 18 2022"]
[White "Punin, Andrii"]
[Black "Hirneise, Jens"]
[WhiteFideId "14112639"]
[BlackFideId "24614734"]
[WhiteElo "2357"]
[BlackElo "2323"]
[Result "1-0"]
[Round "10"]
[TimeControl "180+1"]
[Date "2022.01.18"]
[WhiteClock "0:00:39"]
[BlackClock "0:00:02"]

1. e4 {[%clk 0:03:00]}  e5 {[%clk 0:02:57]} 2. Nf3 {[%clk 0:02:59]}  Nf6 {[%clk 0:02:57]} 3. Nc3 {[%clk 0:02:58]}  Nc6 {[%clk 0:02:52]} 4. d4 {[%clk 0:02:58]}  exd4 {[%clk 0:02:49]} 5. Nxd4 {[%clk 0:02:59]}  Bb4 {[%clk 0:02:46]} 6. Nxc6 {[%clk 0:02:59]}  dxc6 {[%clk 0:02:39]} 7. Qxd8+ {[%clk 0:02:58]}  Kxd8 {[%clk 0:02:40]} 8. Bd2 {[%clk 0:02:49]}  Re8 {[%clk 0:02:29]} 9. f3 {[%clk 0:02:48]}  Be6 {[%clk 0:02:26]} 10. O-O-O {[%clk 0:02:48]}  Kc8 {[%clk 0:02:26]} 11. a3 {[%clk 0:02:46]}  Be7 {[%clk 0:02:23]} 12. Ne2 {[%clk 0:02:43]}  c5 {[%clk 0:02:21]} 13. Nf4 {[%clk 0:02:41]}  Bd6 {[%clk 0:02:17]} 14. Nxe6 {[%clk 0:02:40]}  Rxe6 {[%clk 0:02:10]} 15. Bc4 {[%clk 0:02:38]}  Re7 {[%clk 0:02:10]} 16. Bc3 {[%clk 0:02:25]}  a6 {[%clk 0:01:59]} 17. g3 {[%clk 0:02:15]}  b5 {[%clk 0:01:41]} 18. Bd5 {[%clk 0:02:11]}  Nxd5 {[%clk 0:01:40]} 19. Rxd5 {[%clk 0:02:10]}  f6 {[%clk 0:01:40]} 20. g4 {[%clk 0:01:45]}  Kb7 {[%clk 0:01:37]} 21. h4 {[%clk 0:01:43]}  Rf8 {[%clk 0:01:33]} 22. h5 {[%clk 0:01:43]}  Kc6 {[%clk 0:01:24]} 23. Kd1 {[%clk 0:01:38]}  h6 {[%clk 0:00:58]} 24. Ke2 {[%clk 0:01:37]}  Be5 {[%clk 0:00:51]} 25. Bxe5 {[%clk 0:01:34]}  Rxe5 {[%clk 0:00:48]} 26. Rxe5 {[%clk 0:01:30]}  fxe5 {[%clk 0:00:48]} 27. Rd1 {[%clk 0:01:30]}  Re8 {[%clk 0:00:42]} 28. Ke3 {[%clk 0:01:29]}  Re7 {[%clk 0:00:38]} 29. f4 {[%clk 0:01:24]}  exf4+ {[%clk 0:00:35]} 30. Kxf4 {[%clk 0:01:25]}  a5 {[%clk 0:00:33]} 31. e5 {[%clk 0:01:21]}  Rf7+ {[%clk 0:00:29]} 32. Ke3 {[%clk 0:01:20]}  a4 {[%clk 0:00:28]} 33. Rd2 {[%clk 0:01:09]}  b4 {[%clk 0:00:26]} 34. Ke4 {[%clk 0:01:08]}  bxa3 {[%clk 0:00:24]} 35. bxa3 {[%clk 0:01:09]}  Kb5 {[%clk 0:00:20]} 36. e6 {[%clk 0:01:08]}  Re7 {[%clk 0:00:18]} 37. Kf5 {[%clk 0:01:07]}  Kc6 {[%clk 0:00:16]} 38. c4 {[%clk 0:01:03]}  Re8 {[%clk 0:00:10]} 39. Rd7 {[%clk 0:01:02]}  Rf8+ {[%clk 0:00:09]} 40. Ke5 {[%clk 0:00:59]}  Rg8 {[%clk 0:00:10]} 41. Rf7 {[%clk 0:00:52]}  g6 {[%clk 0:00:08]} 42. hxg6 {[%clk 0:00:45]}  Rxg6 {[%clk 0:00:08]} 43. Rf8 {[%clk 0:00:40]}  Rxg4 {[%clk 0:00:02]} 44. e7 {[%clk 0:00:39]}  Rg1 {[%clk 0:00:02]} 45. e8=Q+ {[%clk 0:00:39]} 1-0


[Site "https://www.chess.com"]

[Event "Titled Tuesday Blitz January 18 2022"]
[White "Remizov, Yaroslav"]
[Black "Turzo, Attila"]
[WhiteFideId "34134015"]
[BlackFideId "704954"]
[WhiteElo "2360"]
[BlackElo "2530"]
[Result "1/2-1/2"]
[Round "10"]
[TimeControl "180+1"]
[Date "2022.01.18"]
[WhiteClock "0:00:06"]
[BlackClock "0:00:04"]

1. b3 {[%clk 0:03:00]}  d5 {[%clk 0:02:58]} 2. e3 {[%clk 0:02:59]}  c6 {[%clk 0:02:58]} 3. a3 {[%clk 0:02:58]}  Bf5 {[%clk 0:02:56]} 4. d3 {[%clk 0:02:58]}  Nf6 {[%clk 0:02:56]} 5. Ra2 {[%clk 0:02:58]}  e5 {[%clk 0:02:54]} 6. c3 {[%clk 0:02:58]}  Nbd7 {[%clk 0:02:54]} 7. f3 {[%clk 0:02:58]}  Bd6 {[%clk 0:02:52]} 8. g4 {[%clk 0:02:58]}  Be6 {[%clk 0:02:46]} 9. Rg2 {[%clk 0:02:53]}  Ng8 {[%clk 0:02:44]} 10. h4 {[%clk 0:02:49]}  Ne7 {[%clk 0:02:43]} 11. Nh3 {[%clk 0:02:47]}  f6 {[%clk 0:02:34]} 12. Be2 {[%clk 0:02:43]}  Qc7 {[%clk 0:02:30]} 13. f4 {[%clk 0:02:39]}  O-O-O {[%clk 0:02:25]} 14. O-O {[%clk 0:02:33]}  Kb8 {[%clk 0:02:22]} 15. d4 {[%clk 0:02:30]}  Rhe8 {[%clk 0:02:13]} 16. c4 {[%clk 0:02:21]}  exd4 {[%clk 0:01:50]} 17. exd4 {[%clk 0:02:20]}  c5 {[%clk 0:01:51]} 18. Nc3 {[%clk 0:02:18]}  dxc4 {[%clk 0:01:43]} 19. f5 {[%clk 0:02:02]}  Bd5 {[%clk 0:01:22]} 20. Nxd5 {[%clk 0:01:11]}  Nxd5 {[%clk 0:01:21]} 21. Bxc4 {[%clk 0:01:10]}  N7b6 {[%clk 0:01:11]} 22. Qf3 {[%clk 0:00:52]}  Nxc4 {[%clk 0:00:58]} 23. bxc4 {[%clk 0:00:52]}  Nb6 {[%clk 0:00:59]} 24. Rc2 {[%clk 0:00:47]}  Ka8 {[%clk 0:00:48]} 25. Nf4 {[%clk 0:00:42]}  Bxf4 {[%clk 0:00:46]} 26. Bxf4 {[%clk 0:00:43]}  Qc8 {[%clk 0:00:41]} 27. d5 {[%clk 0:00:39]}  Qd7 {[%clk 0:00:31]} 28. Rb1 {[%clk 0:00:33]}  Qa4 {[%clk 0:00:30]} 29. Qd3 {[%clk 0:00:24]}  Rd7 {[%clk 0:00:25]} 30. Rb5 {[%clk 0:00:21]}  Rde7 {[%clk 0:00:17]} 31. Bd2 {[%clk 0:00:19]}  Re2 {[%clk 0:00:15]} 32. Ra5 {[%clk 0:00:17]}  Qd7 {[%clk 0:00:15]} 33. Qc3 {[%clk 0:00:13]}  R2e4 {[%clk 0:00:14]} 34. Qf3 {[%clk 0:00:05]}  Rxc4 {[%clk 0:00:13]} 35. Rb2 {[%clk 0:00:05]}  Qc7 {[%clk 0:00:09]} 36. Be3 {[%clk 0:00:04]}  Rc3 {[%clk 0:00:07]} 37. d6 {[%clk 0:00:04]}  Qc6 {[%clk 0:00:07]} 38. Qxc6 {[%clk 0:00:04]}  bxc6 {[%clk 0:00:08]} 39. Rxb6 {[%clk 0:00:04]}  Rcxe3 {[%clk 0:00:07]} 40. Rxc6 {[%clk 0:00:04]}  Re1+ {[%clk 0:00:07]} 41. Kf2 {[%clk 0:00:04]}  R1e2+ {[%clk 0:00:08]} 42. Kf3 {[%clk 0:00:05]}  R8e3+ {[%clk 0:00:06]} 43. Kf4 {[%clk 0:00:05]}  Re4+ {[%clk 0:00:06]} 44. Kf3 {[%clk 0:00:06]}  R4e3+ {[%clk 0:00:06]} 45. Kf4 {[%clk 0:00:06]}  Re4+ {[%clk 0:00:04]} 46. Kf3 {[%clk 0:00:06]}  R4e3+ {[%clk 0:00:04]} 1/2-1/2


[Site "https://www.chess.com"]

[Event "Titled Tuesday Blitz January 18 2022"]
[White "Renjith, Sravan"]
[Black "Koelle, Tobias"]
[WhiteFideId "4306783"]
[BlackFideId "16207378"]
[WhiteElo "1863"]
[BlackElo "2541"]
[Result "0-1"]
[Round "10"]
[TimeControl "180+1"]
[Date "2022.01.18"]
[WhiteClock "0:00:48"]
[BlackClock "0:01:00"]

1. Nf3 {[%clk 0:03:00]}  c5 {[%clk 0:02:53]} 2. c4 {[%clk 0:02:59]}  g6 {[%clk 0:02:54]} 3. Nc3 {[%clk 0:02:59]}  Bg7 {[%clk 0:02:54]} 4. g3 {[%clk 0:03:00]}  Nc6 {[%clk 0:02:52]} 5. Bg2 {[%clk 0:03:00]}  a6 {[%clk 0:02:52]} 6. O-O {[%clk 0:03:01]}  Rb8 {[%clk 0:02:53]} 7. e3 {[%clk 0:03:01]}  b5 {[%clk 0:02:52]} 8. cxb5 {[%clk 0:03:01]}  axb5 {[%clk 0:02:53]} 9. d4 {[%clk 0:03:02]}  b4 {[%clk 0:02:52]} 10. Ne2 {[%clk 0:03:00]}  cxd4 {[%clk 0:02:52]} 11. exd4 {[%clk 0:03:01]}  Nf6 {[%clk 0:02:51]} 12. d5 {[%clk 0:03:00]}  Na5 {[%clk 0:02:51]} 13. Bf4 {[%clk 0:02:58]}  d6 {[%clk 0:02:51]} 14. Nfd4 {[%clk 0:02:53]}  O-O {[%clk 0:02:51]} 15. Nc6 {[%clk 0:02:53]}  Nxc6 {[%clk 0:02:50]} 16. dxc6 {[%clk 0:02:54]}  e5 {[%clk 0:02:51]} 17. Rc1 {[%clk 0:02:42]}  Qc7 {[%clk 0:02:48]} 18. Bg5 {[%clk 0:02:41]}  Be6 {[%clk 0:02:46]} 19. Bxf6 {[%clk 0:02:39]}  Bxf6 {[%clk 0:02:45]} 20. Bd5 {[%clk 0:02:40]}  Bh3 {[%clk 0:02:39]} 21. Re1 {[%clk 0:02:36]}  Rb5 {[%clk 0:02:39]} 22. Qd3 {[%clk 0:02:34]}  Ra5 {[%clk 0:02:37]} 23. a3 {[%clk 0:02:30]}  bxa3 {[%clk 0:02:35]} 24. b4 {[%clk 0:02:30]}  Ra4 {[%clk 0:02:28]} 25. Qb3 {[%clk 0:02:29]}  Ra7 {[%clk 0:02:27]} 26. b5 {[%clk 0:02:29]}  Qb6 {[%clk 0:02:27]} 27. Nc3 {[%clk 0:02:23]}  Bg5 {[%clk 0:02:06]} 28. Rcd1 {[%clk 0:02:13]}  Bg4 {[%clk 0:02:05]} 29. Ra1 {[%clk 0:02:12]}  Bd2 {[%clk 0:02:03]} 30. Reb1 {[%clk 0:02:11]}  Qd4 {[%clk 0:01:45]} 31. Ne4 {[%clk 0:02:04]}  Kg7 {[%clk 0:01:17]} 32. b6 {[%clk 0:01:59]}  Ra5 {[%clk 0:01:16]} 33. Nxd2 {[%clk 0:01:37]}  Qxd2 {[%clk 0:01:17]} 34. Bg2 {[%clk 0:01:32]}  a2 {[%clk 0:01:10]} 35. Rb2 {[%clk 0:01:29]}  Qd4 {[%clk 0:01:03]} 36. b7 {[%clk 0:01:24]}  Rc5 {[%clk 0:01:01]} 37. b8=Q {[%clk 0:01:08]}  Rxb8 {[%clk 0:01:00]} 38. Qxb8 {[%clk 0:01:09]}  Rc2 {[%clk 0:01:01]} 39. Rbxa2 {[%clk 0:00:48]}  Qxf2+ {[%clk 0:01:00]} 0-1


[Site "https://www.chess.com"]

[Event "Titled Tuesday Blitz January 18 2022"]
[White "Romanchuk, Viktor"]
[Black "Rodchenkov, Sergey D."]
[WhiteFideId "14109271"]
[BlackFideId "4168712"]
[WhiteElo "2242"]
[BlackElo "2306"]
[Result "1-0"]
[Round "10"]
[TimeControl "180+1"]
[Date "2022.01.18"]
[WhiteClock "0:00:13"]
[BlackClock "0:00:09"]

1. d4 {[%clk 0:03:00]}  d5 {[%clk 0:02:59]} 2. c4 {[%clk 0:03:00]}  dxc4 {[%clk 0:03:00]} 3. e3 {[%clk 0:03:00]}  Nf6 {[%clk 0:02:59]} 4. Bxc4 {[%clk 0:03:00]}  e6 {[%clk 0:03:00]} 5. Nf3 {[%clk 0:03:01]}  c5 {[%clk 0:03:00]} 6. O-O {[%clk 0:03:01]}  a6 {[%clk 0:03:01]} 7. dxc5 {[%clk 0:03:00]}  Bxc5 {[%clk 0:02:48]} 8. Qxd8+ {[%clk 0:02:59]}  Kxd8 {[%clk 0:02:49]} 9. Ne5 {[%clk 0:02:59]}  Ke7 {[%clk 0:02:49]} 10. Be2 {[%clk 0:02:58]}  Nbd7 {[%clk 0:02:45]} 11. Nc4 {[%clk 0:02:56]}  Nb6 {[%clk 0:02:32]} 12. Na5 {[%clk 0:02:38]}  Nbd5 {[%clk 0:02:11]} 13. Nd2 {[%clk 0:02:12]}  b6 {[%clk 0:02:06]} 14. Ndb3 {[%clk 0:02:10]}  Bd6 {[%clk 0:01:48]} 15. Nc4 {[%clk 0:02:07]}  Bc7 {[%clk 0:01:26]} 16. f3 {[%clk 0:01:59]}  Rb8 {[%clk 0:01:14]} 17. e4 {[%clk 0:01:53]}  Nf4 {[%clk 0:01:13]} 18. Re1 {[%clk 0:01:38]}  Bd7 {[%clk 0:00:52]} 19. Bf1 {[%clk 0:01:33]}  b5 {[%clk 0:00:38]} 20. Ne3 {[%clk 0:01:27]}  Bb6 {[%clk 0:00:34]} 21. Bd2 {[%clk 0:01:26]}  Rhc8 {[%clk 0:00:25]} 22. Rac1 {[%clk 0:01:13]}  e5 {[%clk 0:00:23]} 23. Bb4+ {[%clk 0:00:57]}  Ke8 {[%clk 0:00:20]} 24. Bc5 {[%clk 0:00:57]}  Bxc5 {[%clk 0:00:18]} 25. Nxc5 {[%clk 0:00:55]}  Be6 {[%clk 0:00:13]} 26. g3 {[%clk 0:00:45]}  Nh3+ {[%clk 0:00:09]} 27. Bxh3 {[%clk 0:00:44]}  Bxh3 {[%clk 0:00:10]} 28. Nxa6 {[%clk 0:00:44]}  Rxc1 {[%clk 0:00:06]} 29. Rxc1 {[%clk 0:00:43]}  Rb7 {[%clk 0:00:06]} 30. Rc7 {[%clk 0:00:38]}  Rb6 {[%clk 0:00:04]} 31. Nb4 {[%clk 0:00:35]}  Be6 {[%clk 0:00:03]} 32. Kf2 {[%clk 0:00:33]}  Kd8 {[%clk 0:00:01]} 33. Rc5 {[%clk 0:00:33]}  Rb8 {[%clk 0:00:02]} 34. Nc6+ {[%clk 0:00:32]}  Kc7 {[%clk 0:00:03]} 35. Nxb8+ {[%clk 0:00:33]}  Kxb8 {[%clk 0:00:03]} 36. Rxb5+ {[%clk 0:00:33]}  Kc7 {[%clk 0:00:04]} 37. Rxe5 {[%clk 0:00:33]}  Kd6 {[%clk 0:00:05]} 38. Ra5 {[%clk 0:00:33]}  Nd7 {[%clk 0:00:03]} 39. a3 {[%clk 0:00:32]}  Kc7 {[%clk 0:00:04]} 40. Ke2 {[%clk 0:00:29]}  Kb7 {[%clk 0:00:04]} 41. b4 {[%clk 0:00:27]}  Ne5 {[%clk 0:00:04]} 42. f4 {[%clk 0:00:27]}  Nc6 {[%clk 0:00:03]} 43. Rb5+ {[%clk 0:00:23]}  Kc7 {[%clk 0:00:03]} 44. Rc5 {[%clk 0:00:23]}  Kb6 {[%clk 0:00:03]} 45. Rxc6+ {[%clk 0:00:23]}  Kxc6 {[%clk 0:00:04]} 46. Kd3 {[%clk 0:00:21]}  Kb5 {[%clk 0:00:03]} 47. Kd4 {[%clk 0:00:17]}  f6 {[%clk 0:00:02]} 48. f5 {[%clk 0:00:15]}  Ba2 {[%clk 0:00:03]} 49. Nd5 {[%clk 0:00:13]}  Ka4 {[%clk 0:00:02]} 50. Nc3+ {[%clk 0:00:13]}  Kxa3 {[%clk 0:00:02]} 51. Nxa2 {[%clk 0:00:14]}  Kxa2 {[%clk 0:00:03]} 52. b5 {[%clk 0:00:14]}  Kb2 {[%clk 0:00:04]} 53. b6 {[%clk 0:00:15]}  Kc2 {[%clk 0:00:05]} 54. b7 {[%clk 0:00:16]}  Kd2 {[%clk 0:00:06]} 55. b8=Q {[%clk 0:00:16]}  Ke2 {[%clk 0:00:07]} 56. Qf4 {[%clk 0:00:16]}  g5 {[%clk 0:00:06]} 57. fxg6 {[%clk 0:00:15]}  hxg6 {[%clk 0:00:07]} 58. Qxf6 {[%clk 0:00:15]}  g5 {[%clk 0:00:07]} 59. e5 {[%clk 0:00:15]}  g4 {[%clk 0:00:07]} 60. e6 {[%clk 0:00:16]}  Ke1 {[%clk 0:00:07]} 61. e7 {[%clk 0:00:16]}  Kd1 {[%clk 0:00:08]} 62. Qf2 {[%clk 0:00:13]}  Kc1 {[%clk 0:00:08]} 63. Kc3 {[%clk 0:00:14]}  Kb1 {[%clk 0:00:09]} 64. Qb2# {[%clk 0:00:13]} 1-0


[Site "https://www.chess.com"]

[Event "Titled Tuesday Blitz January 18 2022"]
[White "Sadhwani, Raunak"]
[Black "Le, Tuan Minh"]
[WhiteFideId "35093487"]
[BlackFideId "12401153"]
[WhiteElo "2616"]
[BlackElo "2450"]
[Result "0-1"]
[Round "10"]
[TimeControl "180+1"]
[Date "2022.01.18"]
[WhiteClock "0:00:03"]
[BlackClock "0:00:07"]

1. e4 {[%clk 0:03:00]}  c5 {[%clk 0:03:00]} 2. Nf3 {[%clk 0:03:01]}  Nf6 {[%clk 0:03:00]} 3. Nc3 {[%clk 0:03:00]}  d5 {[%clk 0:03:00]} 4. exd5 {[%clk 0:02:57]}  Nxd5 {[%clk 0:03:01]} 5. Bb5+ {[%clk 0:02:56]}  Bd7 {[%clk 0:03:02]} 6. Qe2 {[%clk 0:02:56]}  Nb4 {[%clk 0:02:53]} 7. Bxd7+ {[%clk 0:02:52]}  Qxd7 {[%clk 0:02:54]} 8. d3 {[%clk 0:02:52]}  N8c6 {[%clk 0:02:53]} 9. a3 {[%clk 0:02:52]}  Nd5 {[%clk 0:02:53]} 10. Bd2 {[%clk 0:02:52]}  e6 {[%clk 0:02:53]} 11. Nxd5 {[%clk 0:02:51]}  Qxd5 {[%clk 0:02:53]} 12. Bc3 {[%clk 0:02:51]}  Be7 {[%clk 0:02:53]} 13. Qe4 {[%clk 0:02:49]}  O-O {[%clk 0:02:51]} 14. O-O-O {[%clk 0:02:43]}  Rfd8 {[%clk 0:02:26]} 15. h4 {[%clk 0:02:43]}  b5 {[%clk 0:02:22]} 16. Ng5 {[%clk 0:02:35]}  Qxe4 {[%clk 0:02:12]} 17. dxe4 {[%clk 0:02:27]}  b4 {[%clk 0:02:12]} 18. axb4 {[%clk 0:02:27]}  cxb4 {[%clk 0:02:12]} 19. Bd2 {[%clk 0:02:28]}  a5 {[%clk 0:02:06]} 20. Nf3 {[%clk 0:02:28]}  a4 {[%clk 0:02:06]} 21. Bg5 {[%clk 0:02:25]}  f6 {[%clk 0:02:06]} 22. Rxd8+ {[%clk 0:02:24]}  Rxd8 {[%clk 0:02:04]} 23. Be3 {[%clk 0:02:22]}  a3 {[%clk 0:02:04]} 24. Kb1 {[%clk 0:02:22]}  h5 {[%clk 0:01:59]} 25. Re1 {[%clk 0:02:02]}  Kf7 {[%clk 0:01:55]} 26. Nd2 {[%clk 0:01:34]}  Ne5 {[%clk 0:01:06]} 27. f3 {[%clk 0:01:33]}  axb2 {[%clk 0:01:07]} 28. Kxb2 {[%clk 0:00:43]}  Bc5 {[%clk 0:01:07]} 29. Kc1 {[%clk 0:00:31]}  Bxe3 {[%clk 0:00:50]} 30. Rxe3 {[%clk 0:00:32]}  g5 {[%clk 0:00:50]} 31. hxg5 {[%clk 0:00:27]}  fxg5 {[%clk 0:00:51]} 32. Rb3 {[%clk 0:00:25]}  Rd4 {[%clk 0:00:52]} 33. Re3 {[%clk 0:00:22]}  Kf6 {[%clk 0:00:46]} 34. Nb3 {[%clk 0:00:22]}  Rd8 {[%clk 0:00:46]} 35. g3 {[%clk 0:00:17]}  Rh8 {[%clk 0:00:36]} 36. Nc5 {[%clk 0:00:16]}  h4 {[%clk 0:00:34]} 37. gxh4 {[%clk 0:00:16]}  gxh4 {[%clk 0:00:35]} 38. f4 {[%clk 0:00:17]}  Ng4 {[%clk 0:00:35]} 39. Rh3 {[%clk 0:00:13]}  Nf2 {[%clk 0:00:32]} 40. Rh2 {[%clk 0:00:13]}  h3 {[%clk 0:00:33]} 41. Nd7+ {[%clk 0:00:12]}  Kg7 {[%clk 0:00:29]} 42. Ne5 {[%clk 0:00:09]}  Nxe4 {[%clk 0:00:27]} 43. Kd1 {[%clk 0:00:09]}  Kf6 {[%clk 0:00:16]} 44. Ke2 {[%clk 0:00:09]}  Kf5 {[%clk 0:00:16]} 45. Ke3 {[%clk 0:00:09]}  Nc3 {[%clk 0:00:15]} 46. Kf3 {[%clk 0:00:09]}  Nb5 {[%clk 0:00:12]} 47. Nd3 {[%clk 0:00:09]}  Nd4+ {[%clk 0:00:13]} 48. Ke3 {[%clk 0:00:10]}  Nxc2+ {[%clk 0:00:07]} 49. Kd2 {[%clk 0:00:07]}  b3 {[%clk 0:00:07]} 50. Kc3 {[%clk 0:00:07]}  Ne3 {[%clk 0:00:07]} 51. Nf2 {[%clk 0:00:08]}  Ng4 {[%clk 0:00:06]} 52. Rxh3 {[%clk 0:00:03]}  Rc8+ {[%clk 0:00:06]} 53. Kxb3 {[%clk 0:00:03]}  Nxf2 {[%clk 0:00:07]} 0-1


[Site "https://www.chess.com"]

[Event "Titled Tuesday Blitz January 18 2022"]
[White "Salinas Herrera, Pablo"]
[Black "Csonka, Balazs"]
[WhiteFideId "3407128"]
[BlackFideId "742910"]
[WhiteElo "2541"]
[BlackElo "2404"]
[Result "1-0"]
[Round "10"]
[TimeControl "180+1"]
[Date "2022.01.18"]
[WhiteClock "0:01:05"]
[BlackClock "0:00:04"]

1. e4 {[%clk 0:02:57]}  e6 {[%clk 0:02:59]} 2. d4 {[%clk 0:02:56]}  d5 {[%clk 0:02:59]} 3. Nc3 {[%clk 0:02:57]}  Nf6 {[%clk 0:02:57]} 4. Bd3 {[%clk 0:02:56]}  c5 {[%clk 0:02:48]} 5. Nf3 {[%clk 0:02:56]}  cxd4 {[%clk 0:02:30]} 6. Nxd4 {[%clk 0:02:55]}  Nc6 {[%clk 0:02:31]} 7. Bb5 {[%clk 0:02:48]}  Bd7 {[%clk 0:02:02]} 8. exd5 {[%clk 0:02:47]}  Nxd4 {[%clk 0:01:56]} 9. Bxd7+ {[%clk 0:02:43]}  Qxd7 {[%clk 0:01:51]} 10. Qxd4 {[%clk 0:02:44]}  Nxd5 {[%clk 0:01:47]} 11. Nxd5 {[%clk 0:02:45]}  Qxd5 {[%clk 0:01:48]} 12. Qxd5 {[%clk 0:02:45]}  exd5 {[%clk 0:01:49]} 13. Be3 {[%clk 0:02:45]}  Kd7 {[%clk 0:01:37]} 14. O-O-O {[%clk 0:02:45]}  Kc6 {[%clk 0:01:36]} 15. Rd3 {[%clk 0:02:45]}  Bb4 {[%clk 0:01:28]} 16. Rhd1 {[%clk 0:02:43]}  Rhd8 {[%clk 0:01:01]} 17. c4 {[%clk 0:02:40]}  d4 {[%clk 0:00:42]} 18. Bxd4 {[%clk 0:02:30]}  f6 {[%clk 0:00:41]} 19. Be3 {[%clk 0:02:28]}  Rxd3 {[%clk 0:00:39]} 20. Rxd3 {[%clk 0:02:29]}  a6 {[%clk 0:00:39]} 21. Kc2 {[%clk 0:02:30]}  Re8 {[%clk 0:00:37]} 22. a3 {[%clk 0:01:57]}  Bd6 {[%clk 0:00:35]} 23. h3 {[%clk 0:01:55]}  h5 {[%clk 0:00:34]} 24. Rd5 {[%clk 0:01:52]}  g6 {[%clk 0:00:27]} 25. Kd3 {[%clk 0:01:48]}  f5 {[%clk 0:00:23]} 26. b4 {[%clk 0:01:45]}  Re4 {[%clk 0:00:14]} 27. f3 {[%clk 0:01:40]}  Re8 {[%clk 0:00:13]} 28. Bd2 {[%clk 0:01:35]}  b5 {[%clk 0:00:08]} 29. Rd4 {[%clk 0:01:35]}  Be5 {[%clk 0:00:06]} 30. Rd5 {[%clk 0:01:31]}  Bg3 {[%clk 0:00:03]} 31. Rc5+ {[%clk 0:01:30]}  Kb6 {[%clk 0:00:02]} 32. cxb5 {[%clk 0:01:29]}  axb5 {[%clk 0:00:02]} 33. Be3 {[%clk 0:01:27]}  Rd8+ {[%clk 0:00:01]} 34. Bd4 {[%clk 0:01:23]}  Ka6 {[%clk 0:00:01]} 35. Rc6+ {[%clk 0:01:07]}  Kb7 {[%clk 0:00:01]} 36. Rb6+ {[%clk 0:01:06]}  Kc7 {[%clk 0:00:01]} 37. Rxb5 {[%clk 0:01:06]}  Bf2 {[%clk 0:00:01]} 38. Rc5+ {[%clk 0:01:07]}  Kb6 {[%clk 0:00:02]} 39. Rc4+ {[%clk 0:01:07]}  Kb5 {[%clk 0:00:02]} 40. Kc3 {[%clk 0:01:04]}  Be1+ {[%clk 0:00:03]} 41. Kb3 {[%clk 0:01:04]}  Re8 {[%clk 0:00:03]} 42. Rc5+ {[%clk 0:01:04]}  Ka6 {[%clk 0:00:04]} 43. Rc6+ {[%clk 0:01:04]}  Kb7 {[%clk 0:00:04]} 44. Rxg6 {[%clk 0:01:05]} 1-0


[Site "https://www.chess.com"]

[Event "Titled Tuesday Blitz January 18 2022"]
[White "Sarana, Alexey"]
[Black "Narayanan.S.L"]
[WhiteFideId "24133795"]
[BlackFideId "5058422"]
[WhiteElo "2665"]
[BlackElo "2494"]
[Result "1/2-1/2"]
[Round "10"]
[TimeControl "180+1"]
[Date "2022.01.18"]
[WhiteClock "0:00:07"]
[BlackClock "0:00:12"]

1. d4 {[%clk 0:03:00]}  Nf6 {[%clk 0:03:00]} 2. c4 {[%clk 0:03:00]}  e6 {[%clk 0:02:59]} 3. Nc3 {[%clk 0:03:01]}  Bb4 {[%clk 0:02:59]} 4. e3 {[%clk 0:03:02]}  O-O {[%clk 0:02:58]} 5. Bd3 {[%clk 0:03:02]}  d5 {[%clk 0:02:58]} 6. a3 {[%clk 0:03:02]}  Bxc3+ {[%clk 0:02:54]} 7. bxc3 {[%clk 0:03:03]}  dxc4 {[%clk 0:02:54]} 8. Bxc4 {[%clk 0:03:04]}  c5 {[%clk 0:02:53]} 9. Ne2 {[%clk 0:03:04]}  Qc7 {[%clk 0:02:53]} 10. Bd3 {[%clk 0:03:04]}  Nc6 {[%clk 0:02:52]} 11. O-O {[%clk 0:03:04]}  e5 {[%clk 0:02:52]} 12. Ng3 {[%clk 0:03:04]}  Bg4 {[%clk 0:02:42]} 13. f3 {[%clk 0:03:04]}  Be6 {[%clk 0:02:42]} 14. f4 {[%clk 0:03:04]}  exd4 {[%clk 0:02:38]} 15. cxd4 {[%clk 0:03:05]}  Rfe8 {[%clk 0:02:05]} 16. Rb1 {[%clk 0:02:59]}  Rad8 {[%clk 0:02:01]} 17. Nh5 {[%clk 0:02:58]}  Nxh5 {[%clk 0:01:59]} 18. Qxh5 {[%clk 0:02:59]}  g6 {[%clk 0:01:54]} 19. Qxc5 {[%clk 0:02:58]}  Bd5 {[%clk 0:01:49]} 20. Bd2 {[%clk 0:02:12]}  Qd7 {[%clk 0:01:47]} 21. f5 {[%clk 0:02:06]}  Rc8 {[%clk 0:01:44]} 22. Qb5 {[%clk 0:02:06]}  b6 {[%clk 0:01:40]} 23. Rf4 {[%clk 0:02:03]}  g5 {[%clk 0:01:28]} 24. Rff1 {[%clk 0:01:47]}  f6 {[%clk 0:01:28]} 25. Rfe1 {[%clk 0:01:45]}  Kg7 {[%clk 0:00:56]} 26. Rbd1 {[%clk 0:01:19]}  Qd6 {[%clk 0:00:54]} 27. Qb2 {[%clk 0:00:44]}  Be4 {[%clk 0:00:52]} 28. Bxe4 {[%clk 0:00:43]}  Rxe4 {[%clk 0:00:53]} 29. Qc2 {[%clk 0:00:43]}  Qd5 {[%clk 0:00:48]} 30. Rf1 {[%clk 0:00:32]}  Ne7 {[%clk 0:00:38]} 31. Qd3 {[%clk 0:00:32]}  h5 {[%clk 0:00:37]} 32. Rf2 {[%clk 0:00:32]}  h4 {[%clk 0:00:36]} 33. h3 {[%clk 0:00:32]}  b5 {[%clk 0:00:33]} 34. Bb4 {[%clk 0:00:32]}  Nc6 {[%clk 0:00:33]} 35. Bc5 {[%clk 0:00:31]}  Rce8 {[%clk 0:00:33]} 36. Qxb5 {[%clk 0:00:23]}  Rxe3 {[%clk 0:00:34]} 37. Qb7+ {[%clk 0:00:24]}  Kh6 {[%clk 0:00:34]} 38. Rdf1 {[%clk 0:00:22]}  g4 {[%clk 0:00:23]} 39. hxg4 {[%clk 0:00:22]}  Rg3 {[%clk 0:00:21]} 40. Qc7 {[%clk 0:00:19]}  Rxg4 {[%clk 0:00:20]} 41. Rf3 {[%clk 0:00:15]}  Reg8 {[%clk 0:00:18]} 42. R1f2 {[%clk 0:00:15]}  Nxd4 {[%clk 0:00:18]} 43. Bxd4 {[%clk 0:00:09]}  Qxd4 {[%clk 0:00:19]} 44. Kh2 {[%clk 0:00:09]}  Qe4 {[%clk 0:00:15]} 45. Qc1+ {[%clk 0:00:07]}  R8g5 {[%clk 0:00:15]} 46. Qc8 {[%clk 0:00:05]}  Qe5+ {[%clk 0:00:14]} 47. Kh1 {[%clk 0:00:05]}  Rg8 {[%clk 0:00:15]} 48. Qc6 {[%clk 0:00:05]}  Re4 {[%clk 0:00:11]} 49. Qc1+ {[%clk 0:00:05]}  Rg5 {[%clk 0:00:10]} 50. Rf1 {[%clk 0:00:06]}  Re2 {[%clk 0:00:09]} 51. R3f2 {[%clk 0:00:06]}  Rxf2 {[%clk 0:00:09]} 52. Rxf2 {[%clk 0:00:07]}  h3 {[%clk 0:00:10]} 53. gxh3 {[%clk 0:00:06]}  Qg3 {[%clk 0:00:10]} 54. Qf1 {[%clk 0:00:05]}  Rh5 {[%clk 0:00:10]} 55. Rf3 {[%clk 0:00:04]}  Qe5 {[%clk 0:00:08]} 56. Qc1+ {[%clk 0:00:04]}  Kh7 {[%clk 0:00:07]} 57. Qe3 {[%clk 0:00:03]}  Qxe3 {[%clk 0:00:06]} 58. Rxe3 {[%clk 0:00:04]}  Rxf5 {[%clk 0:00:07]} 59. Kg2 {[%clk 0:00:05]}  Kg6 {[%clk 0:00:07]} 60. Rf3 {[%clk 0:00:04]}  Ra5 {[%clk 0:00:07]} 61. Kg3 {[%clk 0:00:04]}  Ra4 {[%clk 0:00:07]} 62. Kf2 {[%clk 0:00:05]}  a5 {[%clk 0:00:07]} 63. Ke2 {[%clk 0:00:05]}  f5 {[%clk 0:00:08]} 64. Kf2 {[%clk 0:00:05]}  Kg5 {[%clk 0:00:08]} 65. Kg3 {[%clk 0:00:06]}  f4+ {[%clk 0:00:08]} 66. Kg2 {[%clk 0:00:06]}  Rc4 {[%clk 0:00:09]} 67. Rd3 {[%clk 0:00:07]}  a4 {[%clk 0:00:09]} 68. Kf3 {[%clk 0:00:07]}  Kh4 {[%clk 0:00:10]} 69. Rd8 {[%clk 0:00:06]}  Rc3+ {[%clk 0:00:08]} 70. Kxf4 {[%clk 0:00:06]}  Kxh3 {[%clk 0:00:09]} 71. Ke4 {[%clk 0:00:04]}  Rxa3 {[%clk 0:00:09]} 72. Rd3+ {[%clk 0:00:04]}  Rxd3 {[%clk 0:00:09]} 73. Kxd3 {[%clk 0:00:05]}  a3 {[%clk 0:00:10]} 74. Kc3 {[%clk 0:00:06]}  a2 {[%clk 0:00:11]} 75. Kb2 {[%clk 0:00:06]}  a1=Q+ {[%clk 0:00:12]} 76. Kxa1 {[%clk 0:00:07]} 1/2-1/2


[Site "https://www.chess.com"]